fUSD/lending_fUSD_20251103
["ID","MTS","AMOUNT","RATE_DAILY","PERIOD"]
[392921174,1762142585133,284.46,0.00013699,2]
[392921175,1762142585965,-857.84514295,0.000145,2]
[392921176,1762142587666,-500.0,0.000145,2]
[392921177,1762142589186,-264.9326253,0.000145,2]
[392921178,1762142591489,-195.0,0.000145,2]
[392921179,1762142593616,-175.69608443,0.000145,2]
[392921180,1762142595740,500.0,0.00014499,2]
[392921181,1762142595808,-622.3902203,0.000145,2]
[392921182,1762142596050,500.0,0.00014499,2]
[392921183,1762142596334,500.0,0.00014499,2]
[392921184,1762142596564,500.0,0.00014499,2]
[392921185,1762142596808,500.0,0.00014499,2]
[392921186,1762142597046,500.0,0.00014499,2]
[392921187,1762142597287,366.09963274,0.00014499,2]
[392921188,1762142597311,133.90036726,0.00014499,2]
[392921189,1762142597533,500.0,0.00014499,2]
[392921190,1762142597560,-537.33360049,0.000145,2]
[392921191,1762142602693,151.0,0.00014497,2]
[392921192,1762142604062,-197.16952092,0.000145,2]
[392921193,1762142605614,-259.52036905,0.000145,2]
[392921194,1762142607198,-365.70348041,0.000145,2]
[392921195,1762142608816,-212.93952365,0.000145,2]
[392921196,1762142611277,-218.66808856,0.000145,2]
[392921197,1762142613362,-157.0578332,0.000145,2]
[392921198,1762142617245,-180.64996,0.000145,2]
[392921199,1762142618796,-194.9694206,0.000145,2]
[392921200,1762142622580,-159.85303996,0.000145,2]
[392921201,1762142625525,-258.47227592,0.000145,2]
[392921202,1762142628379,-166.63,0.000145,2]
[392921203,1762142629891,-271.76290924,0.000145,2]
[392921204,1762142633872,-501.65475357,0.000145,2]
[392921205,1762142635901,-530.02006693,0.000145,2]
[392921206,1762142640562,-383.67767346,0.000145,2]
[392921207,1762142643422,-263.98617296,0.000145,2]
[392921208,1762142647439,-427.21331486,0.000145,2]
[392921209,1762142649020,-209.07560919,0.000145,2]
[392921210,1762142651391,-299.72490299,0.000145,2]
[392921211,1762142654381,-264.9326254,0.000145,2]
[392921212,1762142657737,-370.48179252,0.000145,2]
[392921213,1762142673440,-222.5174,0.000145,2]
[392921214,1762142675040,-357.72619111,0.000145,2]
[392921215,1762142676600,-159.2765897,0.000145,2]
[392921216,1762142679972,-270.75869129,0.000145,2]
[392921217,1762142683279,-300.0,0.000145,2]
[392921218,1762142701348,300.0,0.00014499,2]
[392921219,1762142701385,1200.0,0.00014499,2]
[392921220,1762142702920,-310.2397299,0.000145,2]
[392921221,1762142706292,-242.82451901,0.000145,2]
[392921222,1762142709046,1320.64,0.00014,2]
[392921223,1762142709492,150.0,0.00013044,2]
[392921224,1762142709528,158.4525155,0.00014493,2]
[392921225,1762142709635,150.0,0.00013044,2]
[392921226,1762142709705,150.0,0.00013225,2]
[392921227,1762142709776,150.0,0.00013406,2]
[392921228,1762142709849,150.0,0.00013587,2]
[392921229,1762142709880,-217.85136862,0.000145,2]
[392921230,1762142709919,950.725384,0.00014427,2]
[392921231,1762142709959,150.0,0.00013768,2]
[392921232,1762142710027,150.0,0.0001395,2]
[392921233,1762142710065,150.0,0.00014131,2]
[392921234,1762142710108,150.0,0.00014312,2]
[392921235,1762142710151,150.0,0.00014493,2]
[392921236,1762142710275,150.0,0.00013044,2]
[392921237,1762142710339,150.0,0.00013527,2]
[392921238,1762142710410,150.0,0.0001401,2]
[392921239,1762142710494,150.0,0.00014493,2]
[392921240,1762142711059,1320.64,0.00014,2]
[392921241,1762142711152,500.0,0.00014473,2]
[392921242,1762142711216,500.0,0.00014473,2]
[392921243,1762142711944,-185.54222298,0.000145,2]
[392921244,1762142713044,864.65173324,0.00014,2]
[392921245,1762142713066,455.98826676,0.00014,2]
[392921246,1762142714160,-550.78188939,0.000145,2]
[392921247,1762142714346,502.71113247,0.00014473,2]
[392921248,1762142715801,1320.64,0.00014,2]
[392921249,1762142716261,150.0,0.00013044,2]
[392921250,1762142716296,150.0,0.00013527,2]
[392921251,1762142716334,150.0,0.0001401,2]
[392921252,1762142716368,150.0,0.00014493,2]
[392921253,1762142716406,150.0,0.00013044,2]
[392921254,1762142716442,150.0,0.00013768,2]
[392921255,1762142716476,150.0,0.00014493,2]
[392921256,1762142717387,-166.66,0.000145,2]
[392921257,1762142718025,1320.64,0.00014,2]
[392921258,1762142718350,150.0,0.00013044,2]
[392921259,1762142718460,150.0,0.00013147,2]
[392921260,1762142718505,150.0,0.00013251,2]
[392921261,1762142718556,150.0,0.00013354,2]
[392921262,1762142718651,150.0,0.00013561,2]
[392921263,1762142718723,150.0,0.00013665,2]
[392921264,1762142718788,150.0,0.00013768,2]
[392921265,1762142718824,150.0,0.00013458,2]
[392921266,1762142718866,150.0,0.00013872,2]
[392921267,1762142719198,150.0,0.00013976,2]
[392921268,1762142719253,150.0,0.00014183,2]
[392921269,1762142719298,150.0,0.00014286,2]
[392921270,1762142719350,150.0,0.0001439,2]
[392921271,1762142719387,150.0,0.00014079,2]
[392921272,1762142719436,155.64407104,0.00014493,2]
[392921273,1762142722962,262.06521572,0.00013044,2]
[392921274,1762142723022,202.84707978,0.00013044,2]
[392921275,1762142723072,150.0,0.00013044,2]
[392921276,1762142723130,152.89870192,0.00014493,2]
[392921277,1762142728628,150.0,0.00013044,2]
[392921278,1762142728663,150.0,0.00013527,2]
[392921279,1762142728700,150.00000001,0.00014493,2]
[392921280,1762142729023,150.0,0.0001401,2]
[392921281,1762142729063,150.0,0.00013044,2]
[392921282,1762142729097,150.0,0.00013044,2]
[392921283,1762142729131,151.8412202,0.00014493,2]
[392921284,1762142730288,150.0,0.00013044,2]
[392921285,1762142730356,150.0,0.00013334,2]
[392921286,1762142730425,150.0,0.00013624,2]
[392921287,1762142730497,150.0,0.00013913,2]
[392921288,1762142730532,150.0,0.00014203,2]
[392921289,1762142730603,150.0,0.00014493,2]
[392921290,1762142733447,-199.40832095,0.000145,2]
[392921291,1762142733859,150.0,0.00013044,2]
[392921292,1762142733899,150.0,0.00013205,2]
[392921293,1762142734020,74.7343121,0.00013527,2]
[392921294,1762142734044,75.2656879,0.00013527,2]
[392921295,1762142734079,150.0,0.00013366,2]
[392921296,1762142734153,150.0,0.00013688,2]
[392921297,1762142734210,150.0,0.00013849,2]
[392921298,1762142734281,150.0,0.0001401,2]
[392921299,1762142734349,150.0,0.00014171,2]
[392921300,1762142734421,150.0,0.00014332,2]
[392921301,1762142734496,150.0,0.00014493,2]
[392921302,1762142735552,-338.50252326,0.000145,2]
[392921303,1762142736863,279.90199335,0.000144,2]
[392921304,1762142737143,-448.4992543,0.000145,2]
[392921305,1762142739934,-200.25941437,0.000145,2]
[392921306,1762142742352,-152.62543407,0.000145,2]
[392921307,1762142743945,-190.33801776,0.000145,2]
[392921308,1762142746248,-415.08415927,0.000145,2]
[392921309,1762142746454,157.69481526,0.000144,2]
[392921310,1762142750403,1145.0,0.00014463,7]
[392921311,1762142751387,157.69481526,0.00014483,2]
[392921312,1762142752584,-300.0,0.000145,2]
[392921313,1762142757153,-310.396238,0.000145,2]
[392921314,1762142758803,-166.31519297,0.000145,2]
[392921315,1762142760806,-300.0,0.000145,2]
[392921316,1762142762222,150.0,0.00014499,2]
[392921317,1762142762598,-378.60623418,0.000145,2]
[392921318,1762142764187,500.0,0.00014473,2]
[392921319,1762142765382,-156.82702104,0.000145,2]
[392921320,1762142767020,-361.56674478,0.000145,2]
[392921321,1762142769788,-404.91698157,0.000145,2]
[392921322,1762142769872,608.35019161,0.00014473,2]
[392921323,1762142770099,500.0,0.00014473,2]
[392921324,1762142770216,502.16051451,0.00014473,2]
[392921325,1762142773156,-162.64025443,0.000145,2]
[392921326,1762142774791,-300.0,0.000145,2]
[392921327,1762142776518,-331.82457427,0.000145,2]
[392921328,1762142778291,-210.31829255,0.000145,2]
[392921329,1762142779859,-2499.99999984,0.000145,2]
[392921330,1762142782269,-261.01570103,0.000145,2]
[392921331,1762142784018,-672.62472113,0.000145,2]
[392921332,1762142786211,-363.69680026,0.000145,2]
[392921333,1762142788096,3089.57747,0.00014427,2]
[392921334,1762142788373,-349.35957784,0.000145,2]
[392921335,1762142790413,-560.56813996,0.000145,2]
[392921336,1762142792055,300.0,0.000144,2]
[392921337,1762142792505,-774.26494022,0.000145,2]
[392921338,1762142792567,280.4725035,0.000144,2]
[392921339,1762142797499,-162.73894717,0.000145,2]
[392921340,1762142801394,-239.84119403,0.000145,2]
[392921341,1762142803046,-227.90509178,0.000145,2]
[392921342,1762142805329,-231.55302654,0.000145,2]
[392921343,1762142823499,-500.0,0.000145,2]
[392921344,1762142824600,2348.89200861,0.000144,2]
[392921345,1762142824625,2129.49933465,0.000144,2]
[392921346,1762142824922,500.0,0.00014491,2]
[392921347,1762142825271,-193.32505766,0.000145,2]
[392921348,1762142826001,322.6107,0.00014491,2]
[392921349,1762142826068,387.22082022,0.00014491,2]
[392921350,1762142827198,-354.19304193,0.000145,2]
[392921351,1762142827784,623.58710448,0.00014491,2]
[392921352,1762142828097,496.47127164,0.00014491,2]
[392921353,1762142828384,500.0,0.00014491,2]
[392921354,1762142829169,500.0,0.00014491,2]
[392921355,1762142829545,4478.39134326,0.00014456,2]
[392921356,1762142829813,62.22942575,0.00014491,2]
[392921357,1762142829837,437.77057425,0.00014491,2]
[392921358,1762142829976,-303.41188575,0.000145,2]
[392921359,1762142830430,500.0,0.00014491,2]
[392921360,1762142831478,-201.58481839,0.000145,2]
[392921361,1762142833866,151.0,0.00014491,2]
[392921365,1762142835195,-250.0,0.000145,2]
[392921366,1762142835491,500.0,0.00013,2]
[392921367,1762142835538,500.0,0.00013,2]
[392921368,1762142835574,500.0,0.00013,2]
[392921369,1762142835892,500.0,0.00013,2]
[392921370,1762142835946,500.0,0.00013,2]
[392921371,1762142836241,500.0,0.00013,2]
[392921372,1762142836290,500.0,0.00013,2]
[392921373,1762142836627,500.0,0.00013,2]
[392921374,1762142836670,500.0,0.00012011,2]
[392921375,1762142836847,787.00388739,0.00014491,2]
[392921376,1762142836971,500.0,0.00012011,2]
[392921377,1762142837013,500.0,0.00012011,2]
[392921378,1762142837302,500.0,0.00012011,2]
[392921379,1762142837350,500.0,0.00012011,2]
[392921380,1762142837711,500.0,0.00012011,2]
[392921381,1762142838103,500.0,0.00012011,2]
[392921382,1762142838823,-206.67756474,0.000145,2]
[392921385,1762142841035,-206.89387929,0.000145,2]
[392921386,1762142844026,624.23553836,0.00013,2]
[392921387,1762142844055,46.83464577,0.00013,2]
[392921388,1762142844331,-1072.71100037,0.000145,2]
[392921389,1762142844746,500.0,0.00014491,2]
[392921390,1762142845807,500.0,0.00014491,2]
[392921391,1762142845960,500.0,0.00014491,2]
[392921392,1762142846037,-151.89692149,0.000145,2]
[392921393,1762142846559,500.0,0.00014491,2]
[392921394,1762142847170,500.0,0.00014491,2]
[392921395,1762142847418,160.2397299,0.000144,2]
[392921396,1762142847792,500.0,0.00014491,2]
[392921397,1762142848391,500.0,0.00014491,2]
[392921398,1762142848729,-213.18440649,0.000145,2]
[392921399,1762142848986,500.0,0.00014491,2]
[392921400,1762142849285,337.16172461,0.00013,2]
[392921401,1762142849595,500.0,0.00014491,2]
[392921407,1762143011210,166.66,0.00013699,2]
[392921408,1762143011408,166.66,0.00013836,2]
[392921409,1762143011602,166.66,0.00013973,2]
[392921410,1762143013203,-234.59107351,0.00014,2]
[392921411,1762143014783,-100.82892649,0.00014,2]
[392921412,1762143014806,-94.17107351,0.00014077,2]
[392921413,1762143018694,-177.24548918,0.00014077,2]
[392921414,1762143021076,-34.18495696,0.00014077,2]
[392921415,1762143021098,-166.66,0.0001411,2]
[392921416,1762143021119,-6.70674055,0.00014154,2]
[392921417,1762143023300,-159.95325945,0.00014154,2]
[392921418,1762143023323,-60.60276903,0.00014247,2]
[392921441,1762143032233,-1159.841359,0.00014006,2]
[392921443,1762143032243,-106.05723097,0.00014247,2]
[392921445,1762143032254,-300.0,0.0001428,2]
[392921447,1762143032263,-34.10141003,0.0001437,2]
[392921450,1762143032275,-356.0,0.0001437,2]
[392921453,1762143032294,-7.02055856,0.0001437,2]
[392921455,1762143032303,-166.66,0.00014384,2]
[392921457,1762143032313,-244.91424412,0.000144,2]
[392921459,1762143032322,-401.18806333,0.000144,2]
[392921461,1762143032333,-1740.27453667,0.000144,2]
[392921462,1762143032342,-201.58481839,0.00014406,2]
[392921463,1762143032352,-200.16337338,0.00014419,2]
[392921464,1762143032361,-195.0,0.00014455,2]
[392921465,1762143032371,-500.0,0.00014473,2]
[392921466,1762143032381,-500.0,0.00014473,2]
[392921467,1762143032390,-396.97727156,0.00014473,2]
[392921468,1762143032401,-103.02272844,0.00014473,2]
[392921469,1762143032410,-195.0,0.00014481,2]
[392921470,1762143032420,-57.86216521,0.0001449,2]
[392921471,1762143032435,-202.91701032,0.0001449,2]
[392921472,1762143032445,-239.84119403,0.00014491,2]
[392921473,1762143032455,-250.0,0.00014495,2]
[392921474,1762143032468,-675.36438099,0.00014499,2]
[392921475,1762143032479,-983.0,0.00014499,2]
[392921476,1762143032490,-150.0,0.00014499,2]
[392921477,1762143032501,-300.0,0.00014499,2]
[392921478,1762143032511,-1200.0,0.00014499,2]
[392921479,1762143032521,-46117.59010022,0.000145,2]
[392921480,1762143032546,-20011.37534156,0.000145,2]
[392921481,1762143032558,-1336.23569099,0.000145,2]
[392921482,1762143032571,-260647.01323601,0.000145,2]
[392921507,1762143038386,-7930.90527456,0.000145,2]
[392921508,1762143038398,-41142.1513959,0.000145,2]
[392921509,1762143038409,-20816.30085263,0.000145,2]
[392921510,1762143038421,-21315.75351883,0.000145,2]
[392921511,1762143038433,-7197.06642511,0.000145,2]
[392921512,1762143038445,-607.49355008,0.000145,2]
[392921513,1762143038457,-1357.51800897,0.000145,2]
[392921514,1762143038492,-1619.7181,0.000145,2]
[392921655,1762143040338,-257.71061863,0.000145,2]
[392921754,1762143042159,-1.6e-07,0.000145,2]
[392921755,1762143042659,-584133.78404215,0.000145,2]
[392921756,1762143042671,-261.05604505,0.000145,2]
[392921757,1762143042689,-1081.0,0.000145,2]
[392921758,1762143042701,-534.0,0.000145,2]
[392921771,1762143043364,-255.52929697,0.000145,2]
[392921772,1762143043378,-7001.87740762,0.000145,2]
[392921773,1762143043418,-21670.56033936,0.000145,2]
[392921774,1762143043578,-293.29439703,0.000145,2]
[392921775,1762143043831,-327.77408075,0.000145,2]
[392921879,1762143050955,-1080.0,0.000145,2]
[392921880,1762143050966,-865.04,0.000145,2]
[392921881,1762143050977,-8286.32139924,0.000145,2]
[392921882,1762143050990,-5895.67177392,0.000145,2]
[392921883,1762143109206,-159.32460015,0.0001421,2]
[392921884,1762143110866,-229.0510768,0.0001421,2]
[392921885,1762143113498,-230.40058126,0.0001421,2]
[392921886,1762143115700,-161.54081874,0.0001421,2]
[392921887,1762143118567,1500.0,0.00013751,2]
[392921888,1762143118600,-212.22930658,0.0001421,2]
[392921889,1762143121291,-163.44697346,0.0001421,2]
[392921890,1762143123439,-195.0,0.0001421,2]
[392921891,1762143126626,-151.89692149,0.0001421,2]
[392921892,1762143128949,-367.71604901,0.0001421,2]
[392921893,1762143131040,-168.0,0.0001421,2]
[392921894,1762143133455,-162.85116113,0.0001411,2]
[392921895,1762143136025,-25.53096192,0.0001411,2]
[392921896,1762143136048,-162.85116113,0.0001421,2]
[392921897,1762143137263,-221.61206356,0.0001421,2]
[392921898,1762143148834,292.09834676,0.00013,2]
[392921899,1762143149471,-164.46490794,0.0001411,2]
[392921900,1762143149495,-9.41518445,0.0001421,2]
[392921901,1762143151599,-726.74326337,0.0001421,2]
[392921902,1762143151642,-197.88,0.0001421,2]
[392921903,1762143155492,-185.93676109,0.00014305,2]
[392921904,1762143168514,-162.851161,0.00014233,2]
[392921905,1762143168542,-3.58442806,0.00014305,2]
[392921907,1762143259104,-161.82506,0.00014233,2]
[392921908,1762143259126,-14.91635678,0.00014305,2]
[392921917,1762143340064,811.0,0.000124,5]
[392921918,1762143362026,158.92,0.00018,30]
[392921920,1762143363460,-95.56245407,0.00014305,2]
[392921921,1762143363488,-71.55075603,0.0001436,2]
[392921922,1762143365128,-238.9091821,0.00014314,2]
[392921923,1762143367646,-432.2056193,0.00014314,2]
[392921924,1762143370359,-45.8851986,0.00014314,2]
[392921925,1762143370381,-114.8948014,0.00014325,2]
[392921926,1762143372619,-80.1051986,0.00014325,2]
[392921927,1762143372641,-86.5548014,0.00014337,2]
[392921928,1762143374666,-174.64181959,0.00014337,2]
[392921929,1762143377162,-124.75234853,0.00014337,2]
[392921930,1762143377183,-41.92765147,0.0001436,2]
[392921931,1762143381378,-205.61251947,0.0001436,2]
[392921932,1762143382880,-276.60639327,0.0001436,2]
[392921933,1762143385617,-167.113211,0.00014265,2]
[392921934,1762143385644,-301.60284892,0.0001436,2]
[392921935,1762143387081,-205.4835135,0.0001436,2]
[392921938,1762143424027,-181.51197132,0.000143,2]
[392921939,1762143424050,-50.48816591,0.00014331,2]
[392921940,1762143425597,-202.83002145,0.00014331,2]
[392921941,1762143425619,-33.16984132,0.00014331,2]
[392921942,1762143428205,-185.68050046,0.00014331,2]
[392921944,1762143431867,5784.45,0.00013605,2]
[392921946,1762143453965,-260.81245161,0.00014305,2]
[392921947,1762143456105,-245.23527926,0.00014305,2]
[392921948,1762143459352,-72.16151221,0.00014305,2]
[392921949,1762143459381,-15.74073173,0.00014331,2]
[392921950,1762143459409,-195.0,0.00014362,2]
[392921951,1762143459438,-181.51197132,0.00014399,2]
[392921952,1762143459468,-391.9414,0.000144,2]
[392921953,1762143459498,-386.79660244,0.000144,2]
[392921954,1762143459533,-3098.49392588,0.000144,2]
[392921955,1762143459756,-1316.71771284,0.000144,2]
[392921956,1762143459788,-1264.8604,0.000144,2]
[392921957,1762143459820,-717.0,0.00014447,2]
[392921958,1762143459888,-4415.21163865,0.00014456,2]
[392921959,1762143459918,-148.75320668,0.00014456,2]
[392921960,1762143460095,-872.08030934,0.00014456,2]
[392921961,1762143460125,-300.0,0.00014472,2]
[392921962,1762143460154,-1200.0,0.00014472,2]
[392921963,1762143460182,-500.0,0.00014473,2]
[392921964,1762143460211,-160.4397201,0.00014473,2]
[392921965,1762143460502,-500.0,0.00014473,2]
[392921966,1762143460531,-500.0,0.00014473,2]
[392921967,1762143460560,-500.0,0.00014473,2]
[392921968,1762143460590,-322.6107,0.00014491,2]
[392921969,1762143460618,-49.90734709,0.00014491,2]
[392921970,1762143460778,-189.93384694,0.00014491,2]
[392921971,1762143460807,-500.0,0.00014491,2]
[392921972,1762143460836,-599.21490972,0.00014491,2]
[392921973,1762143460863,-151.0,0.00014491,2]
[392921974,1762143460892,-500.0,0.00014491,2]
[392921975,1762143460919,-151.0,0.00014491,2]
[392921976,1762143460946,-157.30807833,0.00014491,2]
[392921977,1762143460973,-623.58710448,0.00014491,2]
[392921978,1762143461001,-496.47127164,0.00014491,2]
[392921979,1762143461029,-151.0,0.00014491,2]
[392921980,1762143461057,-717.0,0.00014492,2]
[392921981,1762143461084,-150.0,0.00014497,2]
[392921982,1762143461112,-154.75859661,0.00014497,2]
[392921983,1762143461143,-417.46238456,0.00014498,2]
[392921984,1762143461224,-82.53761544,0.00014498,2]
[392921985,1762143461253,-297.19434126,0.00014498,2]
[392921986,1762143461280,-3293.6316882,0.00014498,2]
[392921987,1762143461310,-500.0,0.00014499,2]
[392921988,1762143461338,-500.0,0.00014499,2]
[392921989,1762143461367,-153.2827102,0.00014499,2]
[392921990,1762143461530,-346.7172898,0.00014499,2]
[392921991,1762143461561,-500.0,0.00014499,2]
[392921992,1762143461593,-511.24673023,0.00014499,2]
[392921995,1762143462649,-511.24673023,0.00014233,2]
[392921996,1762143462678,-1147.80528777,0.00014233,2]
[392921997,1762143462686,-6136.27667217,0.00014499,2]
[392921998,1762143462722,-203.28221121,0.00014499,2]
[392921999,1762143462741,-10000.01,0.00014499,2]
[392922000,1762143462797,-10000.01,0.00014499,2]
[392922001,1762143462814,-10000.01,0.00014499,2]
[392922003,1762143465296,-2842.85945578,0.00014499,2]
[392922004,1762143465331,-4314.29108844,0.00014499,2]
[392922005,1762143465378,-10000.01,0.00014499,2]
[392922006,1762143465525,-3780.3344169,0.00014499,2]
[392922007,1762143465549,-2439.3411662,0.00014499,2]
[392922008,1762143475608,357.85,0.00013699,2]
[392922009,1762143477421,-268.51595067,0.000144,2]
[392922010,1762143477450,-205.20701749,0.000144,2]
[392922011,1762143477490,-413.8384,0.000144,2]
[392922012,1762143477524,-322.6107,0.00014491,2]
[392922013,1762143477555,-205.20701749,0.00014499,2]
[392922014,1762143477583,-155.558,0.00014499,2]
[392922015,1762143477720,-6858.1358287,0.00014499,2]
[392922016,1762143477735,-4908.9275471,0.00014499,2]
[392922017,1762143477744,-3780.67,0.00014499,2]
[392922018,1762143477753,-999.99,0.00014499,2]
[392922019,1762143477762,-150.99,0.00014499,2]
[392922020,1762143477770,-159.4324529,0.00014499,2]
[392922021,1762143477801,-3687.9775471,0.00014499,2]
[392922022,1762143477865,-4426.9,0.00014499,2]
[392922023,1762143477909,-1146.21,0.00014499,2]
[392922024,1762143477918,-2624.0549058,0.00014499,2]
[392922025,1762143478118,-2624.0749058,0.00014499,2]
[392922026,1762143478141,-4751.8601884,0.00014499,2]
[392922027,1762143478250,-999.35,0.00014499,2]
[392922028,1762143478583,-8001.31,0.00014499,2]
[392922029,1762143478620,-0.02,0.00014499,2]
[392922030,1762143478648,-246.1582886,0.00014499,2]
[392922031,1762143478673,-9753.8117114,0.00014499,2]
[392922033,1762143489381,999.0,0.00013813,3]
[392922034,1762143499132,-177.72900927,0.000144,2]
[392922035,1762143504191,-41.85565101,0.000144,2]
[392922036,1762143504214,-190.72515169,0.000144,2]
[392922037,1762143507025,-161.32573117,0.000144,2]
[392922038,1762143510739,-195.0,0.000144,2]
[392922039,1762143512632,-171.07018413,0.000144,2]
[392922041,1762143529134,-324.58395261,0.00014399,2]
[392922042,1762143529158,-143.58961194,0.000144,2]
[392922043,1762143532351,-522.70933448,0.000144,2]
[392922044,1762143535086,-385.44430223,0.000144,2]
[392922045,1762143535363,-5.43579777,0.000144,2]
[392922046,1762143538414,-166.66,0.00014327,2]
[392922047,1762143542135,-234.19585911,0.00014327,2]
[392922048,1762143560448,9292.42125847,0.000143,2]
[392922050,1762143582071,707.58874153,0.00013912,2]
[392922051,1762143582094,2510.56125847,0.00013912,2]
[392922052,1762143583729,-309.39709189,0.00014327,2]
[392922053,1762143583994,-6870.65455775,0.000144,2]
[392922054,1762143584081,-10000.01,0.000144,2]
[392922055,1762143584184,-10000.01,0.000144,2]
[392922056,1762143584305,-10000.01,0.000144,2]
[392922057,1762143584454,-10000.01,0.000144,2]
[392922058,1762143584702,-10000.01,0.000144,2]
[392922059,1762143584833,-10000.01,0.000144,2]
[392922060,1762143584972,-10000.01,0.000144,2]
[392922061,1762143585105,-10000.01,0.000144,2]
[392922062,1762143589774,-10000.01,0.000144,2]
[392922063,1762143592754,-10000.01,0.000144,2]
[392922064,1762143592872,-10000.01,0.000144,2]
[392922065,1762143592986,-10000.01,0.000144,2]
[392922066,1762143593114,-10000.01,0.000144,2]
[392922067,1762143593257,-10000.01,0.000144,2]
[392922068,1762143593737,-10000.01,0.000144,2]
[392922069,1762143593755,-10000.01,0.000144,2]
[392922070,1762143593774,-10000.01,0.000144,2]
[392922071,1762143593803,-10000.01,0.000144,2]
[392922073,1762143608859,803.86,0.00014,2]
[392922074,1762143610797,803.86,0.00014,2]
[392922075,1762143612708,803.86,0.00014,2]
[392922076,1762143616555,803.86,0.00014,2]
[392922077,1762143618512,803.86,0.00014,2]
[392922079,1762143639688,500.0,0.000143,2]
[392922080,1762143647718,-300.0,0.00014399,2]
[392922081,1762143647749,-1200.0,0.00014399,2]
[392922082,1762143647873,-2480.71,0.000144,2]
[392922083,1762143647938,-10000.01,0.000144,2]
[392922084,1762143648211,-1105.31414448,0.000144,2]
[392922085,1762143648240,-338.4470271,0.000144,2]
[392922086,1762143648268,-1769.8643156,0.00014456,2]
[392922087,1762143648296,-173.85278369,0.0001449,2]
[392922088,1762143648460,-3225.05345826,0.00014492,2]
[392922089,1762143648496,-10000.01,0.00014492,2]
[392922090,1762143648510,-10000.01,0.00014492,2]
[392922091,1762143648764,-10000.01,0.00014492,2]
[392922092,1762143648898,-4484.27166886,0.00014492,2]
[392922093,1762143648920,-1031.46666228,0.00014492,2]
[392922094,1762143649015,-300.0,0.00014498,2]
[392922095,1762143649044,-150.0,0.00014498,2]
[392922096,1762143649333,-538.70545648,0.00014499,2]
[392922097,1762143649361,-267.69608267,0.00014499,2]
[392922098,1762143649394,-200.0,0.00014499,2]
[392922099,1762143649424,-227.20876683,0.00014499,2]
[392922100,1762143662239,150.0,0.00014499,2]
[392922101,1762143662275,300.0,0.00014499,2]
[392922103,1762143672123,10000.01,0.000143,2]
[392922104,1762143672151,10000.01,0.000143,2]
[392922105,1762143672178,10000.01,0.000143,2]
[392922106,1762143672204,10000.01,0.000143,2]
[392922107,1762143672230,10000.01,0.000143,2]
[392922108,1762143672257,10000.01,0.000143,2]
[392922109,1762143672286,10000.01,0.000143,2]
[392922110,1762143683633,1495.14478458,0.00013815,2]
[392922111,1762143683656,504.85521542,0.00013815,2]
[392922112,1762143685940,-9550.01,0.000143,2]
[392922113,1762143686037,-10000.01,0.000143,2]
[392922114,1762143686143,-10000.01,0.000143,2]
[392922115,1762143686286,-10000.01,0.000143,2]
[392922116,1762143686423,-10000.01,0.000143,2]